[Event "Božićni turnir u VaraždinskimToplicama 26.12.2025."]
[Site "Varazdinske Toplice, Croatia"]
[Date "2025.12.26"]
[Round "8.5"]
[White "Zelenika, Zoran"]
[Black "Sostaric, Denis"]
[Result "*"]
[TimeControl "10"]
[WhiteFideId "14534452"]
[BlackFideId "14615851"]
[WhiteElo "2031"]
[BlackElo "1868"]

1. Nf3 {[%clk 00:10:00]} {[%emt 00:13:13]} d5 {[%clk 00:09:57]} {[%emt
00:00:21]} 2. g3 {[%clk 00:09:57]} Nf6 {[%clk 00:09:56]} {[%emt 00:00:01]} 3.
Bg2 {[%clk 00:09:56]} e6 {[%clk 00:09:55]} 4. O-O {[%clk 00:09:55]} {[%emt
00:00:03]} Be7 {[%clk 00:09:55]} 5. d4 {[%clk 00:09:54]} O-O {[%clk 00:09:53]}
{[%emt 00:00:03]} 6. c4 {[%clk 00:09:53]} dxc4 {[%clk 00:09:43]} {[%emt
00:00:11]} 7. Qa4 {[%clk 00:09:52]} Bd7 {[%clk 00:09:26]} {[%emt 00:00:18]} 8.
Qxc4 {[%clk 00:09:50]} {[%emt 00:00:02]} Bc6 {[%clk 00:09:25]} {[%emt
00:00:01]} 9. Nc3 {[%clk 00:09:47]} {[%emt 00:00:02]} Nbd7 {[%clk 00:09:19]}
{[%emt 00:00:07]} 10. Qd3 {[%clk 00:09:44]} {[%emt 00:00:03]} h6 {[%clk
00:09:03]} {[%emt 00:00:16]} 11. e4 {[%clk 00:09:42]} {[%emt 00:00:02]} Nc5
{[%clk 00:08:53]} {[%emt 00:00:10]} 12. Qe2 {[%clk 00:09:39]} {[%emt 00:00:02]}
Ncxe4 {[%clk 00:08:47]} {[%emt 00:00:06]} 13. Nxe4 {[%clk 00:09:37]} {[%emt
00:00:02]} Bxe4 {[%clk 00:08:45]} {[%emt 00:00:03]} 14. Bf4 {[%clk 00:09:32]}
{[%emt 00:00:04]} c6 {[%clk 00:08:28]} {[%emt 00:00:18]} 15. Be5 {[%clk
00:09:20]} {[%emt 00:00:11]} Qd5 {[%clk 00:08:10]} {[%emt 00:00:19]} 16. Rfe1
{[%clk 00:09:19]} {[%emt 00:00:01]} Bxf3 {[%clk 00:07:56]} {[%emt 00:00:14]} 17.
Bxf3 {[%clk 00:09:17]} {[%emt 00:00:02]} Qa5 {[%clk 00:07:43]} {[%emt
00:00:13]} 18. a3 {[%clk 00:09:12]} {[%emt 00:00:05]} Nd5 {[%clk 00:07:30]}
{[%emt 00:00:13]} 19. b4 {[%clk 00:08:49]} {[%emt 00:00:22]} Qd8 {[%clk
00:07:29]} {[%emt 00:00:02]} 20. Rad1 {[%clk 00:08:36]} {[%emt 00:00:12]} Bf6
{[%clk 00:07:24]} {[%emt 00:00:05]} 21. Bxd5 {[%clk 00:08:07]} {[%emt
00:00:30]} exd5 {[%clk 00:06:48]} {[%emt 00:00:36]} 22. b5 {[%clk 00:08:06]}
Bxe5 {[%clk 00:06:32]} {[%emt 00:00:16]} 23. dxe5 {[%clk 00:08:04]} {[%emt
00:00:01]} Re8 {[%clk 00:06:25]} {[%emt 00:00:08]} 24. bxc6 {[%clk 00:08:02]}
{[%emt 00:00:02]} bxc6 {[%clk 00:06:23]} {[%emt 00:00:02]} 25. Qc2 {[%clk
00:08:00]} {[%emt 00:00:01]} Re6 {[%clk 00:06:10]} {[%emt 00:00:13]} 26. f4
{[%clk 00:07:59]} {[%emt 00:00:02]} Qb6+ {[%clk 00:06:10]} {[%emt 00:00:01]} 27.
Kg2 {[%clk 00:07:56]} {[%emt 00:00:02]} Rae8 {[%clk 00:05:59]} {[%emt
00:00:10]} 28. Rd2 {[%clk 00:07:40]} {[%emt 00:00:16]} d4 {[%clk 00:05:51]}
{[%emt 00:00:09]} 29. Qc4 {[%clk 00:07:20]} {[%emt 00:00:19]} c5 {[%clk
00:05:40]} {[%emt 00:00:11]} 30. Rde2 {[%clk 00:07:16]} {[%emt 00:00:04]} Qc6+
{[%clk 00:05:21]} {[%emt 00:00:20]} 31. Kf2 {[%clk 00:07:03]} {[%emt 00:00:12]}
Rd8 {[%clk 00:04:51]} {[%emt 00:00:31]} 32. f5 {[%clk 00:06:52]} {[%emt
00:00:11]} Ree8 {[%clk 00:04:33]} {[%emt 00:00:17]} 33. e6 {[%clk 00:06:49]}
{[%emt 00:00:03]} Re7 {[%clk 00:02:51]} {[%emt 00:01:42]} 34. f6 {[%clk
00:05:51]} {[%emt 00:00:59]} Rxe6 {[%clk 00:02:46]} {[%emt 00:00:05]} 35. Rxe6
{[%clk 00:05:48]} {[%emt 00:00:02]} fxe6 {[%clk 00:02:36]} {[%emt 00:00:10]} 36.
Rxe6 {[%clk 00:05:47]} {[%emt 00:00:01]} Qd5 {[%clk 00:02:24]} {[%emt
00:00:13]} 37. Qxd5 {[%clk 00:05:10]} {[%emt 00:00:38]} Rxd5 {[%clk 00:02:21]}
{[%emt 00:00:02]} 38. fxg7 {[%clk 00:05:08]} {[%emt 00:00:01]} Kxg7 {[%clk
00:02:20]} {[%emt 00:00:02]} 39. Re7+ {[%clk 00:05:03]} {[%emt 00:00:05]} Kf6
{[%clk 00:02:16]} {[%emt 00:00:04]} 40. Rxa7 {[%clk 00:05:02]} {[%emt
00:00:01]} Re5 {[%clk 00:02:08]} {[%emt 00:00:08]} 41. Ra6+ {[%clk 00:04:59]}
{[%emt 00:00:03]} Ke7 {[%clk 00:02:07]} {[%emt 00:00:01]} 42. Rxh6 {[%clk
00:04:40]} {[%emt 00:00:19]} d3 {[%clk 00:02:04]} {[%emt 00:00:03]} 43. Rh7+
{[%clk 00:04:39]} Kd6 {[%clk 00:02:02]} {[%emt 00:00:02]} 44. Rh6+ {[%clk
00:04:39]} Kd5 {[%clk 00:01:58]} {[%emt 00:00:05]} 45. Rh8 {[%clk 00:04:38]} c4
{[%clk 00:01:54]} {[%emt 00:00:05]} 46. Rd8+ {[%clk 00:04:36]} {[%emt
00:00:01]} Kc5 {[%clk 00:01:52]} {[%emt 00:00:02]} 47. h4 {[%clk 00:04:32]}
{[%emt 00:00:05]} Rd5 {[%clk 00:01:45]} {[%emt 00:00:06]} 48. Rxd5+ {[%clk
00:04:24]} {[%emt 00:00:09]} Kxd5 {[%clk 00:01:44]} {[%emt 00:00:02]} 49. Ke3
{[%clk 00:04:24]} Ke5 {[%clk 00:01:32]} {[%emt 00:00:12]} 50. a4 {[%clk
00:04:22]} {[%emt 00:00:01]} *

[Event "Božićni turnir u VaraždinskimToplicama 26.12.2025."]
[Site "Varazdinske Toplice, Croatia"]
[Date "2025.12.26"]
[Round "8.6"]
[White "Bozinovic, Bogdan"]
[Black "Soelkner, Julian"]
[Result "*"]
[TimeControl "10"]
[WhiteFideId "14502593"]
[BlackFideId "1665421"]
[WhiteElo "2129"]
[BlackElo "1661"]

1. d4 {[%clk 00:09:57]} {[%emt 00:00:03]} Nf6 {[%clk 00:09:59]} {[%emt
00:00:02]} 2. c4 {[%clk 00:09:56]} {[%emt 00:00:01]} e6 {[%clk 00:09:57]}
{[%emt 00:00:02]} 3. Nc3 {[%clk 00:09:54]} {[%emt 00:00:01]} c5 {[%clk
00:09:54]} {[%emt 00:00:04]} 4. d5 {[%clk 00:09:52]} {[%emt 00:00:02]} exd5
{[%clk 00:09:52]} {[%emt 00:00:01]} 5. cxd5 {[%clk 00:09:51]} {[%emt 00:00:02]}
d6 {[%clk 00:09:50]} {[%emt 00:00:01]} 6. e4 {[%clk 00:09:49]} {[%emt
00:00:02]} g6 {[%clk 00:09:49]} 7. f4 {[%clk 00:09:48]} {[%emt 00:00:02]} Bg7
{[%clk 00:09:47]} {[%emt 00:00:01]} 8. Bb5+ {[%clk 00:09:46]} {[%emt 00:00:02]}
Bd7 {[%clk 00:09:42]} {[%emt 00:00:06]} 9. e5 {[%clk 00:09:43]} {[%emt
00:00:03]} Qe7 {[%clk 00:08:37]} {[%emt 00:01:05]} 10. Qe2 {[%clk 00:09:26]}
{[%emt 00:00:17]} dxe5 {[%clk 00:05:58]} {[%emt 00:02:38]} 11. fxe5 {[%clk
00:09:23]} {[%emt 00:00:04]} Bxb5 {[%clk 00:05:17]} {[%emt 00:00:42]} 12. Nxb5
{[%clk 00:09:19]} {[%emt 00:00:03]} Nxd5 {[%clk 00:04:49]} {[%emt 00:00:28]} 13.
Nd6+ {[%clk 00:08:51]} {[%emt 00:00:28]} Kf8 {[%clk 00:04:32]} {[%emt
00:00:17]} 14. Nf3 {[%clk 00:08:25]} {[%emt 00:00:25]} Nc6 {[%clk 00:04:26]}
{[%emt 00:00:07]} 15. O-O {[%clk 00:08:14]} {[%emt 00:00:11]} Nxe5 {[%clk
00:03:06]} {[%emt 00:01:20]} 16. Nxe5 {[%clk 00:08:00]} {[%emt 00:00:13]} Qxe5
{[%clk 00:02:38]} {[%emt 00:00:29]} 17. Rxf7+ {[%clk 00:07:16]} {[%emt
00:00:44]} Kg8 {[%clk 00:02:37]} 18. Rxg7+ {[%clk 00:07:07]} {[%emt 00:00:08]}
Qxg7 {[%clk 00:02:34]} {[%emt 00:00:04]} 19. Qe6+ {[%clk 00:07:06]} {[%emt
00:00:01]} Kf8 {[%clk 00:02:28]} {[%emt 00:00:06]} 20. Bh6 {[%clk 00:06:54]}
{[%emt 00:00:12]} *

[Event "Božićni turnir u VaraždinskimToplicama 26.12.2025."]
[Site "Varazdinske Toplice, Croatia"]
[Date "2025.12.26"]
[Round "8.7"]
[White "Forstnaric, Zdravko"]
[Black "Vukmirovic, Dusan"]
[Result "*"]
[TimeControl "10"]
[WhiteFideId "14523841"]
[BlackFideId "938785"]
[WhiteElo "1836"]
[BlackElo "2082"]

1. d4 {[%clk 00:10:00]} {[%emt 00:02:05]} d5 {[%emt 00:00:10]} 2. c4 {[%clk
00:09:55]} {[%emt 00:00:02]} Nf6 {[%clk 00:09:59]} 3. Nc3 {[%clk 00:09:54]} e6
{[%clk 00:09:58]} {[%emt 00:00:01]} 4. Nf3 {[%clk 00:09:52]} {[%emt 00:00:02]}
Bb4 {[%clk 00:09:49]} {[%emt 00:00:10]} 5. Bg5 {[%clk 00:09:51]} dxc4 {[%clk
00:09:43]} {[%emt 00:00:07]} 6. e4 {[%clk 00:09:48]} {[%emt 00:00:02]} b5
{[%clk 00:09:38]} {[%emt 00:00:05]} 7. e5 {[%clk 00:09:43]} {[%emt 00:00:07]}
h6 {[%clk 00:09:34]} {[%emt 00:00:03]} 8. Bh4 {[%clk 00:09:39]} {[%emt
00:00:05]} g5 {[%clk 00:09:32]} 9. Nxg5 {[%clk 00:09:38]} {[%emt 00:00:01]}
hxg5 {[%clk 00:09:26]} {[%emt 00:00:06]} 10. Bxg5 {[%clk 00:09:37]} {[%emt
00:00:01]} Nbd7 {[%clk 00:09:23]} {[%emt 00:00:03]} 11. exf6 {[%clk 00:09:30]}
{[%emt 00:00:07]} Bb7 {[%clk 00:09:05]} {[%emt 00:00:18]} 12. a3 {[%clk
00:09:28]} {[%emt 00:00:02]} Bxc3+ {[%clk 00:08:54]} {[%emt 00:00:12]} 13. bxc3
{[%clk 00:09:27]} c6 {[%clk 00:08:33]} {[%emt 00:00:21]} 14. Qf3 {[%clk
00:09:15]} {[%emt 00:00:12]} Qa5 {[%clk 00:08:00]} {[%emt 00:00:33]} 15. Be2
{[%clk 00:09:04]} {[%emt 00:00:11]} O-O-O {[%clk 00:07:54]} {[%emt 00:00:06]}
16. O-O {[%clk 00:08:36]} {[%emt 00:00:27]} Rdg8 {[%clk 00:07:16]} {[%emt
00:00:39]} 17. Qe3 {[%clk 00:08:33]} {[%emt 00:00:03]} Nb6 {[%clk 00:07:12]}
{[%emt 00:00:05]} 18. Bf3 {[%clk 00:08:30]} {[%emt 00:00:03]} Na4 {[%clk
00:06:32]} {[%emt 00:00:39]} 19. Rfc1 {[%clk 00:08:20]} {[%emt 00:00:10]} Qc7
{[%clk 00:06:23]} {[%emt 00:00:09]} 20. Bf4 {[%clk 00:08:17]} {[%emt 00:00:03]}
Qd8 {[%clk 00:06:21]} {[%emt 00:00:03]} 21. Qe5 {[%clk 00:08:13]} {[%emt
00:00:03]} Kd7 {[%clk 00:05:58]} {[%emt 00:00:23]} 22. Qd6+ {[%clk 00:07:49]}
{[%emt 00:00:22]} Ke8 {[%clk 00:05:57]} {[%emt 00:00:04]} 23. Bxc6+ {[%clk
00:07:46]} {[%emt 00:00:02]} Bxc6 {[%clk 00:05:54]} {[%emt 00:00:03]} 24. Qxc6+
{[%clk 00:07:45]} {[%emt 00:00:02]} Qd7 {[%clk 00:05:37]} {[%emt 00:00:17]} 25.
Qa8+ {[%clk 00:07:42]} {[%emt 00:00:02]} Qd8 {[%clk 00:05:36]} {[%emt
00:00:02]} 26. Qxa7 {[%emt 00:00:04]} Qxf6 {[%clk 00:05:22]} {[%emt 00:00:11]}
27. Qb8+ {[%clk 00:07:22]} {[%emt 00:00:17]} Qd8 {[%clk 00:05:11]} {[%emt
00:00:13]} 28. Qxb5+ {[%clk 00:07:19]} {[%emt 00:00:02]} Qd7 {[%clk 00:05:10]}
29. Qxc4 {[%clk 00:07:02]} {[%emt 00:00:18]} Qb7 {[%clk 00:04:55]} {[%emt
00:00:15]} 30. Qxa4+ {[%clk 00:06:54]} {[%emt 00:00:08]} Kd8 {[%clk 00:04:48]}
{[%emt 00:00:07]} 31. d5 {[%clk 00:06:47]} {[%emt 00:00:07]} *

[Event "Božićni turnir u VaraždinskimToplicama 26.12.2025."]
[Site "Varazdinske Toplice, Croatia"]
[Date "2025.12.26"]
[Round "8.8"]
[White "Hergotic, Ivica"]
[Black "Marcec, Fran"]
[Result "*"]
[TimeControl "10"]
[WhiteFideId "14523884"]
[BlackFideId "79313183"]
[WhiteElo "2054"]
[BlackElo "1150"]

1. e4 {[%clk 00:09:57]} {[%emt 00:00:03]} c6 {[%clk 00:09:59]} {[%emt
00:00:01]} 2. f4 {[%clk 00:09:55]} {[%emt 00:00:02]} d5 {[%clk 00:09:58]}
{[%emt 00:00:02]} 3. e5 {[%clk 00:09:54]} {[%emt 00:00:02]} Bf5 {[%clk
00:09:57]} 4. Ne2 {[%clk 00:09:53]} {[%emt 00:00:02]} h5 {[%clk 00:09:47]}
{[%emt 00:00:08]} 5. Ng3 {[%clk 00:09:51]} {[%emt 00:00:04]} Bg4 {[%clk
00:09:45]} 6. Be2 {[%clk 00:09:50]} Bxe2 {[%clk 00:09:30]} {[%emt 00:00:14]} 7.
Qxe2 {[%clk 00:09:39]} {[%emt 00:00:14]} h4 {[%clk 00:09:24]} {[%emt 00:00:04]}
8. Nf5 {[%clk 00:09:04]} {[%emt 00:00:35]} e6 {[%clk 00:09:19]} {[%emt
00:00:05]} 9. Ne3 {[%clk 00:09:02]} {[%emt 00:00:02]} Nd7 {[%clk 00:09:09]}
{[%emt 00:00:11]} 10. d4 {[%clk 00:08:59]} Nh6 {[%clk 00:08:45]} {[%emt
00:00:25]} 11. c3 {[%clk 00:08:22]} {[%emt 00:00:37]} c5 {[%clk 00:08:34]}
{[%emt 00:00:12]} 12. Nd2 {[%clk 00:08:09]} {[%emt 00:00:12]} g6 {[%clk
00:08:08]} {[%emt 00:00:25]} 13. Nf3 {[%clk 00:08:01]} {[%emt 00:00:08]} Nf5
{[%clk 00:07:47]} {[%emt 00:00:21]} 14. Nxf5 {[%clk 00:07:34]} {[%emt
00:00:28]} gxf5 {[%clk 00:07:45]} {[%emt 00:00:02]} 15. Be3 {[%clk 00:07:29]}
{[%emt 00:00:04]} cxd4 {[%clk 00:07:38]} {[%emt 00:00:08]} 16. Bxd4 {[%clk
00:07:28]} {[%emt 00:00:02]} Bh6 {[%clk 00:07:17]} {[%emt 00:00:20]} 17. g3
{[%clk 00:07:13]} {[%emt 00:00:15]} hxg3 {[%clk 00:06:57]} {[%emt 00:00:20]} 18.
hxg3 {[%clk 00:07:12]} Bg7 {[%clk 00:06:41]} {[%emt 00:00:16]} 19. Rxh8+ {[%clk
00:07:04]} {[%emt 00:00:07]} Bxh8 {[%clk 00:06:40]} {[%emt 00:00:01]} 20. Qh2
{[%clk 00:07:00]} {[%emt 00:00:05]} Bg7 {[%clk 00:06:26]} {[%emt 00:00:14]} 21.
Qh5 {[%clk 00:06:37]} {[%emt 00:00:22]} Qe7 {[%clk 00:06:11]} {[%emt 00:00:16]}
22. Qh7 {[%clk 00:06:28]} {[%emt 00:00:09]} Qf8 {[%clk 00:05:34]} {[%emt
00:00:38]} 23. O-O-O {[%clk 00:05:51]} {[%emt 00:00:36]} O-O-O {[%emt
00:00:15]} 24. Ng5 {[%clk 00:05:36]} {[%emt 00:00:13]} Re8 {[%clk 00:04:42]}
{[%emt 00:00:39]} 25. Re1 {[%clk 00:05:15]} {[%emt 00:00:20]} b6 {[%clk
00:04:31]} {[%emt 00:00:12]} 26. Qh5 {[%clk 00:05:03]} {[%emt 00:00:12]} Re7
{[%clk 00:04:11]} {[%emt 00:00:20]} 27. Kc2 {[%clk 00:04:52]} {[%emt 00:00:10]}
Nc5 {[%clk 00:04:05]} {[%emt 00:00:06]} 28. g4 {[%clk 00:04:35]} {[%emt
00:00:17]} fxg4 {[%clk 00:03:59]} {[%emt 00:00:06]} 29. Qxg4 {[%clk 00:04:35]}
{[%emt 00:00:01]} Qh8 {[%clk 00:03:47]} {[%emt 00:00:12]} 30. Bxc5 {[%clk
00:04:07]} {[%emt 00:00:28]} bxc5 {[%clk 00:03:46]} 31. Re2 {[%clk 00:03:56]}
{[%emt 00:00:11]} Kc7 {[%clk 00:03:32]} {[%emt 00:00:14]} 32. Rg2 {[%clk
00:03:26]} {[%emt 00:00:30]} Bf8 {[%clk 00:03:25]} {[%emt 00:00:07]} 33. Qe2
{[%clk 00:03:18]} {[%emt 00:00:08]} Kb6 {[%clk 00:03:12]} {[%emt 00:00:14]} 34.
a4 {[%clk 00:03:17]} a6 {[%clk 00:03:08]} {[%emt 00:00:03]} 35. Qf2 {[%clk
00:03:05]} {[%emt 00:00:12]} f6 {[%clk 00:03:03]} {[%emt 00:00:05]} 36. Nf3
{[%clk 00:02:51]} {[%emt 00:00:14]} Qh7+ {[%clk 00:03:03]} 37. Kb3 {[%clk
00:02:48]} {[%emt 00:00:03]} Kc6 {[%clk 00:02:59]} {[%emt 00:00:04]} 38. exf6
{[%clk 00:02:37]} {[%emt 00:00:10]} Rb7+ {[%clk 00:02:59]} 39. Ka2 {[%clk
00:02:37]} Qe4 {[%clk 00:02:54]} {[%emt 00:00:05]} 40. Qe2 {[%clk 00:02:20]}
{[%emt 00:00:17]} Qxa4+ {[%clk 00:02:51]} {[%emt 00:00:03]} 41. Kb1 {[%clk
00:02:19]} {[%emt 00:00:01]} Qxf4 {[%clk 00:02:32]} {[%emt 00:00:19]} 42. f7
{[%clk 00:01:51]} {[%emt 00:00:28]} Rxf7 {[%clk 00:02:24]} {[%emt 00:00:09]} 43.
Ne5+ {[%clk 00:01:47]} {[%emt 00:00:03]} Kd6 {[%clk 00:02:19]} {[%emt
00:00:05]} 44. Nxf7+ {[%clk 00:01:45]} {[%emt 00:00:02]} Qxf7 {[%clk 00:02:18]}
45. Qxa6+ {[%clk 00:01:42]} {[%emt 00:00:03]} Ke7 {[%clk 00:02:06]} {[%emt
00:00:12]} 46. Qb7+ {[%clk 00:01:36]} {[%emt 00:00:06]} Ke8 {[%clk 00:01:50]}
{[%emt 00:00:15]} 47. Qc8+ {[%clk 00:01:35]} {[%emt 00:00:01]} Ke7 {[%clk
00:01:47]} {[%emt 00:00:03]} 48. Qxc5+ {[%clk 00:01:33]} {[%emt 00:00:02]} Kd7
{[%clk 00:01:44]} {[%emt 00:00:04]} 49. Qa7+ {[%clk 00:01:31]} {[%emt
00:00:01]} Ke8 {[%clk 00:01:42]} {[%emt 00:00:03]} 50. Qb8+ {[%clk 00:01:27]}
{[%emt 00:00:03]} Kd7 {[%clk 00:01:38]} {[%emt 00:00:03]} 51. Qb7+ {[%clk
00:01:25]} {[%emt 00:00:03]} Ke8 {[%clk 00:01:37]} {[%emt 00:00:02]} 52. Qxf7+
{[%clk 00:01:24]} Kxf7 {[%clk 00:01:36]} {[%emt 00:00:01]} 53. Kc2 {[%clk
00:01:23]} {[%emt 00:00:01]} Ke7 {[%clk 00:01:35]} 54. Kd3 Kd6 55. Rg8 {[%clk
00:01:18]} {[%emt 00:00:05]} Be7 {[%clk 00:01:34]} 56. b4 {[%clk 00:01:17]}
{[%emt 00:00:01]} Kc6 {[%clk 00:01:32]} {[%emt 00:00:02]} 57. Re8 {[%clk
00:01:11]} {[%emt 00:00:06]} Kd7 {[%clk 00:01:30]} {[%emt 00:00:02]} 58. Ra8
{[%clk 00:01:10]} Bd6 {[%clk 00:01:29]} {[%emt 00:00:01]} 59. Kd4 {[%clk
00:01:06]} {[%emt 00:00:03]} Bg3 {[%clk 00:01:27]} {[%emt 00:00:03]} 60. Ra7+
{[%clk 00:01:02]} {[%emt 00:00:03]} Kd6 {[%clk 00:01:25]} {[%emt 00:00:02]} 61.
Ra6+ {[%clk 00:01:01]} {[%emt 00:00:02]} Kd7 {[%clk 00:01:25]} 62. b5 {[%clk
00:01:00]} {[%emt 00:00:01]} Bf2+ {[%clk 00:01:21]} {[%emt 00:00:04]} 63. Ke5
{[%clk 00:00:58]} {[%emt 00:00:02]} Kc7 {[%clk 00:01:12]} {[%emt 00:00:09]} 64.
Kxe6 {[%clk 00:00:56]} {[%emt 00:00:02]} d4 {[%clk 00:01:11]} {[%emt 00:00:01]}
65. cxd4 Bxd4 66. Kd5 {[%clk 00:00:50]} {[%emt 00:00:01]} Bb6 {[%clk 00:01:08]}
{[%emt 00:00:02]} 67. Kc4 {[%clk 00:00:47]} {[%emt 00:00:04]} Kb7 {[%clk
00:01:06]} {[%emt 00:00:01]} 68. Ra2 {[%clk 00:00:45]} {[%emt 00:00:02]} Be3
{[%clk 00:01:05]} {[%emt 00:00:02]} 69. Re2 {[%clk 00:00:44]} Bf4 {[%clk
00:01:04]} {[%emt 00:00:01]} 70. Kc5 {[%clk 00:00:42]} {[%emt 00:00:02]} Bg5
{[%clk 00:01:00]} {[%emt 00:00:03]} 71. Re5 {[%clk 00:00:40]} {[%emt 00:00:02]}
Bd8 {[%clk 00:00:59]} {[%emt 00:00:01]} 72. Rh5 {[%clk 00:00:38]} {[%emt
00:00:03]} Be7+ {[%clk 00:00:57]} {[%emt 00:00:02]} 73. Kc4 {[%clk 00:00:36]}
{[%emt 00:00:02]} Bd8 {[%clk 00:00:56]} 74. Re5 {[%clk 00:00:33]} {[%emt
00:00:03]} Kb6 {[%clk 00:00:53]} {[%emt 00:00:03]} 75. Re6+ {[%clk 00:00:31]}
{[%emt 00:00:01]} Kb7 {[%clk 00:00:52]} {[%emt 00:00:01]} 76. Kc5 {[%clk
00:00:30]} Bh4 {[%clk 00:00:50]} {[%emt 00:00:03]} 77. Re4 {[%clk 00:00:27]}
{[%emt 00:00:03]} Bg5 {[%clk 00:00:48]} 78. b6 {[%clk 00:00:25]} {[%emt
00:00:03]} Bd8 {[%clk 00:00:45]} {[%emt 00:00:03]} 79. Rb4 {[%clk 00:00:20]}
{[%emt 00:00:04]} Be7+ {[%clk 00:00:43]} {[%emt 00:00:03]} 80. Kb5 {[%clk
00:00:20]} Bxb4 {[%clk 00:00:42]} {[%emt 00:00:01]} 81. Kxb4 {[%clk 00:00:19]}
Kxb6 {[%clk 00:00:41]} *

[Event "Božićni turnir u VaraždinskimToplicama 26.12.2025."]
[Site "Varazdinske Toplice, Croatia"]
[Date "2025.12.26"]
[Round "8.9"]
[White "Matkun, Josip"]
[Black "Hostnjak, Hrvoje"]
[Result "0-1"]
[TimeControl "10"]
[WhiteFideId "14513765"]
[BlackFideId "14551470"]
[WhiteElo "1832"]
[BlackElo "1704"]

1. d4 {[%clk 00:09:54]} {[%emt 00:00:04]} d5 {[%clk 00:09:58]} {[%emt
00:00:03]} 2. c3 {[%clk 00:09:53]} c6 {[%clk 00:09:57]} {[%emt 00:00:02]} 3.
Nf3 {[%clk 00:09:51]} {[%emt 00:00:02]} Nf6 {[%clk 00:09:56]} 4. Bg5 {[%clk
00:09:50]} {[%emt 00:00:03]} g6 {[%clk 00:09:55]} 5. Nbd2 {[%clk 00:09:48]}
{[%emt 00:00:02]} Bg7 {[%clk 00:09:54]} 6. e3 {[%clk 00:09:45]} {[%emt
00:00:05]} O-O {[%clk 00:09:52]} 7. h3 {[%clk 00:09:45]} Nbd7 {[%clk 00:09:48]}
{[%emt 00:00:04]} 8. Bd3 {[%clk 00:09:39]} {[%emt 00:00:06]} Re8 {[%clk
00:09:35]} {[%emt 00:00:14]} 9. O-O {[%clk 00:09:32]} {[%emt 00:00:07]} e5
{[%clk 00:08:44]} {[%emt 00:00:51]} 10. dxe5 {[%clk 00:09:29]} {[%emt
00:00:02]} Nxe5 {[%clk 00:08:42]} {[%emt 00:00:03]} 11. Nxe5 {[%clk 00:09:28]}
{[%emt 00:00:01]} Rxe5 {[%clk 00:08:41]} {[%emt 00:00:01]} 12. Nf3 {[%clk
00:09:24]} {[%emt 00:00:03]} Re8 {[%clk 00:08:37]} {[%emt 00:00:05]} 13. Re1
{[%clk 00:09:15]} {[%emt 00:00:09]} Qb6 {[%clk 00:08:31]} {[%emt 00:00:06]} 14.
Qc2 {[%clk 00:09:01]} {[%emt 00:00:14]} Ne4 {[%clk 00:08:18]} {[%emt 00:00:13]}
15. Bf4 {[%clk 00:08:36]} {[%emt 00:00:24]} a5 {[%clk 00:07:39]} {[%emt
00:00:39]} 16. Rab1 {[%clk 00:08:15]} {[%emt 00:00:22]} a4 {[%clk 00:07:32]}
{[%emt 00:00:07]} 17. a3 {[%clk 00:08:04]} {[%emt 00:00:11]} Nc5 {[%clk
00:06:53]} {[%emt 00:00:39]} 18. Bf1 {[%clk 00:07:19]} {[%emt 00:00:44]} Bf5
{[%clk 00:06:50]} {[%emt 00:00:03]} 19. Qc1 {[%clk 00:06:47]} {[%emt 00:00:32]}
Bxb1 {[%clk 00:05:36]} {[%emt 00:01:14]} 20. Qxb1 {[%clk 00:06:46]} Rad8 {[%clk
00:05:30]} {[%emt 00:00:07]} 21. g4 {[%clk 00:06:19]} {[%emt 00:00:26]} Nb3
{[%clk 00:04:35]} {[%emt 00:00:55]} 22. Qc2 {[%clk 00:06:00]} {[%emt 00:00:19]}
c5 {[%clk 00:04:26]} {[%emt 00:00:09]} 23. Rd1 {[%clk 00:05:45]} {[%emt
00:00:16]} Qc6 {[%clk 00:03:42]} {[%emt 00:00:44]} 24. Bg2 {[%clk 00:05:33]}
{[%emt 00:00:12]} b5 {[%clk 00:03:27]} {[%emt 00:00:15]} 25. h4 {[%clk
00:05:01]} {[%emt 00:00:31]} Na5 {[%clk 00:03:24]} {[%emt 00:00:04]} 26. h5
{[%clk 00:04:47]} {[%emt 00:00:13]} Nc4 {[%clk 00:03:16]} {[%emt 00:00:09]} 27.
hxg6 {[%clk 00:04:38]} {[%emt 00:00:09]} hxg6 {[%clk 00:03:13]} {[%emt
00:00:03]} 28. Ng5 {[%clk 00:04:27]} {[%emt 00:00:10]} Nb6 {[%clk 00:02:44]}
{[%emt 00:00:29]} 29. Bf3 {[%clk 00:03:22]} {[%emt 00:01:05]} Qf6 {[%clk
00:02:30]} {[%emt 00:00:14]} 30. Nh3 {[%clk 00:03:00]} {[%emt 00:00:22]} d4
{[%clk 00:01:50]} {[%emt 00:00:41]} 31. Kg2 {[%clk 00:02:35]} {[%emt 00:00:25]}
Nd5 {[%clk 00:01:11]} {[%emt 00:00:39]} 32. Bg5 {[%clk 00:02:26]} {[%emt
00:00:08]} Qe6 {[%clk 00:01:08]} {[%emt 00:00:04]} 33. Bxd8 {[%clk 00:02:15]}
{[%emt 00:00:10]} Rxd8 {[%clk 00:01:08]} 34. cxd4 {[%clk 00:01:52]} {[%emt
00:00:22]} cxd4 {[%clk 00:01:05]} {[%emt 00:00:05]} 35. exd4 {[%clk 00:01:11]}
{[%emt 00:00:40]} Nf6 {[%clk 00:01:04]} {[%emt 00:00:01]} 36. Ng5 {[%clk
00:00:55]} {[%emt 00:00:15]} Qd7 {[%clk 00:01:03]} 37. Qc6 {[%clk 00:00:39]}
{[%emt 00:00:16]} Qe7 {[%clk 00:00:23]} {[%emt 00:00:41]} 38. Qxb5 {[%clk
00:00:24]} {[%emt 00:00:14]} Bh6 {[%clk 00:00:22]} 39. Nh3 {[%clk 00:00:09]}
{[%emt 00:00:15]} Nd7 {[%clk 00:00:20]} {[%emt 00:00:03]} 40. g5 {[%clk
00:00:03]} {[%emt 00:00:05]} Bg7 {[%clk 00:00:20]} {[%emt 00:00:01]} 41. Qxa4
{[%clk 00:00:00]} {[%emt 00:00:06]} 0-1